fUSD/lending_fUSD_20260608
["ID","MTS","AMOUNT","RATE_DAILY","PERIOD"]
[424464689,1780929044000,-500.0,0.00014177,2]
[424464686,1780929044000,-500.0,0.00014177,2]
[424464692,1780929044000,-500.0,0.00014177,2]
[424464694,1780929044000,-615.0,0.00014177,2]
[424464735,1780929044000,-500.0,0.00014301,2]
[424464736,1780929044000,-500.0,0.00014301,2]
[424464722,1780929044000,-150.0,0.00014301,2]
[424464751,1780929044000,-225.77132543,0.00014417,2]
[424464753,1780929044000,-172.99202504,0.00014447,2]
[424464756,1780929044000,-5800.0,0.00014449,2]
[424464757,1780929044000,-5800.0,0.00014458,2]
[424464758,1780929044000,-5800.0,0.00014466,2]
[424464759,1780929044000,-166.66,0.00014473,2]
[424464765,1780929044000,-5800.0,0.00014492,2]
[424464764,1780929044000,-150.0,0.00014487,2]
[424464767,1780929044000,-24912.26141387,0.00014522,2]
[424464766,1780929044000,-5800.0,0.000145,2]
[424464775,1780929044000,-150.0,0.00014786,2]
[424464776,1780929044000,-500.0,0.000148,5]
[424464754,1780929044000,-161.49601252,0.00014447,2]
[424464734,1780929044000,-500.0,0.00014301,2]
[424464768,1780929044000,-150.0,0.00014587,2]
[424464770,1780929044000,-150.0,0.00014612,2]
[424464773,1780929044000,-500.0,0.000147,5]
[424464772,1780929044000,-150.0,0.00014687,2]
[424464774,1780929044000,-166.66,0.00014778,2]
[424464771,1780929044000,-150.0,0.00014653,2]
[424464779,1780929044000,-716.78,0.00014857,2]
[424464778,1780929044000,-747.81,0.00014842,2]
[424464780,1780929044000,-25000.0,0.00014865,3]
[424464781,1780929044000,-25000.0,0.00014874,3]
[424464782,1780929044000,-25000.0,0.00014882,3]
[424464783,1780929044000,-150.0,0.00014886,2]
[424464777,1780929044000,-150.0,0.0001482,2]
[424464755,1780929044000,-150.0,0.00014447,2]
[424464769,1780929044000,-500.0,0.000146,5]
[424464752,1780929044000,-5800.0,0.00014441,2]
[424464763,1780929044000,-150.0,0.00014487,2]
[424464727,1780929044000,-500.0,0.00014301,2]
[424464724,1780929044000,-150.0,0.00014301,2]
[424464732,1780929044000,-500.0,0.00014301,2]
[424464725,1780929044000,-200.0,0.00014301,2]
[424464728,1780929044000,-505.49510151,0.00014301,2]
[424464726,1780929044000,-151.47284327,0.00014301,2]
[424464730,1780929044000,-500.0,0.00014301,2]
[424464731,1780929044000,-500.0,0.00014301,2]
[424464747,1780929044000,-500.0,0.00014301,2]
[424464737,1780929044000,-500.0,0.00014301,2]
[424464738,1780929044000,-500.0,0.00014301,2]
[424464748,1780929044000,-500.0,0.00014301,2]
[424464729,1780929044000,-500.0,0.00014301,2]
[424464740,1780929044000,-500.0,0.00014301,2]
[424464762,1780929044000,-150.0,0.00014487,2]
[424464739,1780929044000,-500.0,0.00014301,2]
[424464761,1780929044000,-5800.0,0.00014483,2]
[424464760,1780929044000,-5800.0,0.00014475,2]
[424464749,1780929044000,-150.0,0.0001432,2]
[424464744,1780929044000,-500.0,0.00014301,2]
[424464750,1780929044000,-150.0,0.00014387,2]
[424464745,1780929044000,-500.0,0.00014301,2]
[424464742,1780929044000,-500.0,0.00014301,2]
[424464741,1780929044000,-500.0,0.00014301,2]
[424464743,1780929044000,-565.06229658,0.00014301,2]
[424464746,1780929044000,-501.87117652,0.00014301,2]
[424464787,1780929045000,-24912.26141387,0.000149,2]
[424464796,1780929045000,-152.29803504,0.00014986,2]
[424464804,1780929045000,-2645.59698609,0.00014999,2]
[424464792,1780929045000,-1500.0,0.00014943,2]
[424464788,1780929045000,-25000.0,0.000149,3]
[424464789,1780929045000,-2283.04018065,0.000149,2]
[424464786,1780929045000,-500.0,0.000149,5]
[424464785,1780929045000,-813.22507294,0.000149,2]
[424464790,1780929045000,-558.31741908,0.000149,2]
[424464791,1780929045000,-1600.0,0.00014937,2]
[424464795,1780929045000,-169.83658506,0.00014986,2]
[424464784,1780929045000,-25000.0,0.00014891,3]
[424464793,1780929045000,-153.84603978,0.00014986,2]
[424464809,1780929045000,-520.9,0.00015,2]
[424464803,1780929045000,-897.64890297,0.0001499,2]
[424464805,1780929045000,-250.0,0.00014999,2]
[424464798,1780929045000,-150.0,0.00014986,2]
[424464797,1780929045000,-150.0,0.00014986,2]
[424464801,1780929045000,-33117.60347242,0.00014989,2]
[424464799,1780929045000,-150.0,0.00014986,2]
[424464802,1780929045000,-897.64890297,0.0001499,2]
[424464800,1780929045000,-150.0,0.00014986,2]
[424464807,1780929045000,-300.0,0.00014999,2]
[424464806,1780929045000,-300.0,0.00014999,2]
[424464808,1780929045000,-666.0,0.00014999,2]
[424464810,1780929045000,-419802.98015419,0.00015,2]
[424464794,1780929045000,-150.42029641,0.00014986,2]
[424464814,1780929046000,-7207.03362276,0.00014856,3]
[424464812,1780929046000,-500.0,0.00015,2]
[424464813,1780929046000,-500.0,0.00013698,2]
[424464811,1780929046000,-3594.01043236,0.00015,2]
[424464817,1780929046000,-838555.93562963,0.00015,2]
[424464826,1780929046000,-13800.6041825,0.00015,2]
[424464815,1780929046000,-17792.96637724,0.00014856,3]
[424464816,1780929046000,-15795296.13695554,0.00015,2]
[424464824,1780929046000,-500.0,0.00013698,2]
[424464850,1780929047000,-500.0,0.00013698,2]
[424464848,1780929047000,-257.25263484,0.00013698,2]
[424464851,1780929047000,-500.0,0.00013698,2]
[424464849,1780929047000,-242.74736516,0.00013698,2]
[424464853,1780929047000,-500.0,0.00013698,2]
[424464855,1780929047000,-21088.22716928,0.00015,2]
[424464856,1780929047000,-8205.48038924,0.00015,2]
[424464854,1780929047000,-757.25263484,0.00015,2]
[424464852,1780929047000,-500.0,0.00013698,2]
[424464864,1780929048000,-500.0,0.00013698,2]
[424464863,1780929048000,-500.0,0.00013698,2]
[424464865,1780929048000,-755217.70611733,0.00015,2]
[424464860,1780929048000,-500.0,0.00013698,2]
[424464859,1780929048000,-500.0,0.00013698,2]
[424464858,1780929048000,-500.0,0.00013698,2]
[424464862,1780929048000,-500.0,0.00013698,2]
[424464857,1780929048000,-500.0,0.00013698,2]
[424464861,1780929048000,-500.0,0.00013698,2]
[424464866,1780929227000,500.0,0.000106,3]
[424464867,1780929229000,1000.0,0.000107,3]
[424464868,1780929231000,1500.0,0.000108,3]
[424464869,1780929233000,2000.0,0.000109,3]
[424464872,1780929524000,302.2,0.00030137,120]
[424464873,1780929621000,6111.0,0.00030137,120]
[424464875,1780929916000,500.0,0.00015068,120]
[424464876,1780930033000,400.0,0.000105,3]
[424464877,1780930034000,900.0,0.000106,3]
[424464878,1780930036000,1400.0,0.000107,3]
[424464879,1780930039000,1900.0,0.000108,3]
[424464880,1780930041000,2400.0,0.000109,3]
[424464881,1780930090000,160.44,0.00030082,120]
[424464883,1780930127000,150.1266,0.00030136,120]
[424464899,1780930232000,-250.0,0.00010547,2]
[424464900,1780930232000,-150.0,0.00010554,2]
[424464902,1780930232000,-264.51,0.00010641,2]
[424464898,1780930232000,-239.98949959,0.00010478,2]
[424464895,1780930232000,-86.44094771,0.00010435,2]
[424464892,1780930232000,-720.67,0.00010358,2]
[424464896,1780930232000,-250.0,0.00010456,2]
[424464894,1780930232000,-341.994015,0.00010435,2]
[424464893,1780930232000,-4940.46503729,0.00010435,2]
[424464901,1780930232000,-890.66886957,0.00010629,2]
[424464897,1780930232000,-133.91050041,0.00010478,2]
[424464903,1780930232000,-54.83163084,0.00010641,2]
[424464915,1780930232000,-51033.94166445,0.000111,2]
[424464905,1780930232000,-200.0,0.00010774,2]
[424464904,1780930232000,-126.97836916,0.00010641,2]
[424464914,1780930232000,-23611.97541521,0.00011099,2]
[424464916,1780930232000,-65924.13615485,0.000111,2]
[424464911,1780930232000,-928.23001,0.000111,2]
[424464910,1780930232000,-61117.59664768,0.000111,2]
[424464913,1780930232000,-485.26362913,0.000111,2]
[424464909,1780930232000,-897.64890297,0.0001109,2]
[424464906,1780930232000,-936.5,0.00010789,2]
[424464908,1780930232000,-150.99,0.00010809,2]
[424464907,1780930232000,-215.86427702,0.00010809,2]
[424464912,1780930232000,-501.55199785,0.000111,2]
[424464990,1780930240000,-2524.01407567,0.00011298,2]
[424464991,1780930240000,-2524.01407567,0.00011298,2]
[424464992,1780930240000,-245.42960079,0.00011298,2]
[424464984,1780930240000,-9999.99,0.00011199,2]
[424464988,1780930240000,-150.2978553,0.00011298,2]
[424464987,1780930240000,-500.0,0.00011297,2]
[424464982,1780930240000,-31270.03268786,0.00011198,2]
[424464986,1780930240000,-897.64890297,0.00011289,2]
[424464989,1780930240000,-500.0,0.00011298,2]
[424464985,1780930240000,-9999.99,0.00011199,2]
[424464981,1780930240000,-2319578.51305472,0.000111,2]
[424464980,1780930240000,-430.76684132,0.000111,2]
[424464994,1780930240000,-2524.01407567,0.00011298,2]
[424464983,1780930240000,-150.0,0.00011199,2]
[424464993,1780930240000,-2524.01407567,0.00011298,2]
[424465004,1780930240000,-2524.01407567,0.00011298,2]
[424465003,1780930240000,-2524.01407567,0.00011298,2]
[424464995,1780930240000,-2524.01407567,0.00011298,2]
[424465011,1780930240000,-2524.01407567,0.00011298,2]
[424465010,1780930240000,-2524.01407567,0.00011298,2]
[424465009,1780930240000,-2524.01407567,0.00011298,2]
[424465007,1780930240000,-2524.01407567,0.00011298,2]
[424465005,1780930240000,-2524.01407567,0.00011298,2]
[424465006,1780930240000,-2524.01407567,0.00011298,2]
[424464997,1780930240000,-2524.01407567,0.00011298,2]
[424465000,1780930240000,-2524.01407567,0.00011298,2]
[424465002,1780930240000,-2524.01407567,0.00011298,2]
[424464996,1780930240000,-2524.01407567,0.00011298,2]
[424464998,1780930240000,-2524.01407567,0.00011298,2]
[424464999,1780930240000,-2524.01407567,0.00011298,2]
[424465001,1780930240000,-2524.01407567,0.00011298,2]
[424465008,1780930240000,-2524.01407567,0.00011298,2]
[424465034,1780930241000,-2524.01407567,0.00011298,2]
[424465036,1780930241000,-2524.01407567,0.00011298,2]
[424465035,1780930241000,-2524.01407567,0.00011298,2]
[424465037,1780930241000,-2524.01407567,0.00011298,2]
[424465038,1780930241000,-2524.01407567,0.00011298,2]
[424465039,1780930241000,-2524.01407567,0.00011298,2]
[424465040,1780930241000,-2524.01407567,0.00011298,2]
[424465051,1780930241000,-351.39242597,0.00011298,2]
[424465043,1780930241000,-2524.01407567,0.00011298,2]
[424465041,1780930241000,-2524.01407567,0.00011298,2]
[424465045,1780930241000,-2524.01407567,0.00011298,2]
[424465044,1780930241000,-2524.01407567,0.00011298,2]
[424465050,1780930241000,-500.0,0.00011298,2]
[424465032,1780930241000,-2524.01407567,0.00011298,2]
[424465047,1780930241000,-2524.01407567,0.00011298,2]
[424465048,1780930241000,-2524.01407567,0.00011298,2]
[424465049,1780930241000,-470.5678691,0.00011298,2]
[424465042,1780930241000,-2524.01407567,0.00011298,2]
[424465033,1780930241000,-2524.01407567,0.00011298,2]
[424465024,1780930241000,-2524.01407567,0.00011298,2]
[424465029,1780930241000,-2524.01407567,0.00011298,2]
[424465046,1780930241000,-2524.01407567,0.00011298,2]
[424465014,1780930241000,-2524.01407567,0.00011298,2]
[424465013,1780930241000,-2524.01407567,0.00011298,2]
[424465012,1780930241000,-2524.01407567,0.00011298,2]
[424465016,1780930241000,-2524.01407567,0.00011298,2]
[424465015,1780930241000,-2524.01407567,0.00011298,2]
[424465018,1780930241000,-2524.01407567,0.00011298,2]
[424465017,1780930241000,-2524.01407567,0.00011298,2]
[424465019,1780930241000,-2524.01407567,0.00011298,2]
[424465020,1780930241000,-2524.01407567,0.00011298,2]
[424465021,1780930241000,-2524.01407567,0.00011298,2]
[424465025,1780930241000,-2524.01407567,0.00011298,2]
[424465023,1780930241000,-2524.01407567,0.00011298,2]
[424465027,1780930241000,-2524.01407567,0.00011298,2]
[424465026,1780930241000,-2524.01407567,0.00011298,2]
[424465028,1780930241000,-2524.01407567,0.00011298,2]
[424465030,1780930241000,-2524.01407567,0.00011298,2]
[424465031,1780930241000,-2524.01407567,0.00011298,2]
[424465053,1780930241000,-2484.57635575,0.00011298,2]
[424465022,1780930241000,-2524.01407567,0.00011298,2]
[424465052,1780930241000,-2484.57635575,0.00011298,2]
[424465077,1780930241000,-2484.57635575,0.00011298,2]
[424465079,1780930241000,-2484.57635575,0.00011298,2]
[424465078,1780930241000,-2484.57635575,0.00011298,2]
[424465080,1780930241000,-2484.57635574,0.00011298,2]
[424465081,1780930241000,-2484.57635574,0.00011298,2]
[424465082,1780930241000,-2484.57635574,0.00011298,2]
[424465084,1780930241000,-500.0,0.00011298,2]
[424465087,1780930241000,-500.0,0.00011298,2]
[424465086,1780930241000,-500.0,0.00011298,2]
[424465085,1780930241000,-500.0,0.00011298,2]
[424465088,1780930241000,-500.0,0.00011298,2]
[424465083,1780930241000,-2484.57635574,0.00011298,2]
[424465089,1780930241000,-500.0,0.00011298,2]
[424465092,1780930241000,-28052.2070847,0.0001131,2]
[424465090,1780930241000,-1500000.0,0.00011299,2]
[424465091,1780930241000,-403.8933,0.000113,2]
[424465093,1780930241000,-385.83571343,0.0001131,2]
[424465075,1780930241000,-2484.57635575,0.00011298,2]
[424465074,1780930241000,-2484.57635575,0.00011298,2]
[424465073,1780930241000,-2484.57635575,0.00011298,2]
[424465072,1780930241000,-2484.57635575,0.00011298,2]
[424465056,1780930241000,-2484.57635575,0.00011298,2]
[424465055,1780930241000,-2484.57635575,0.00011298,2]
[424465058,1780930241000,-2484.57635575,0.00011298,2]
[424465062,1780930241000,-2484.57635575,0.00011298,2]
[424465057,1780930241000,-2484.57635575,0.00011298,2]
[424465060,1780930241000,-2484.57635575,0.00011298,2]
[424465076,1780930241000,-2484.57635575,0.00011298,2]
[424465061,1780930241000,-2484.57635575,0.00011298,2]
[424465059,1780930241000,-2484.57635575,0.00011298,2]
[424465063,1780930241000,-2484.57635575,0.00011298,2]
[424465065,1780930241000,-2484.57635575,0.00011298,2]
[424465066,1780930241000,-2484.57635575,0.00011298,2]
[424465068,1780930241000,-2484.57635575,0.00011298,2]
[424465067,1780930241000,-2484.57635575,0.00011298,2]
[424465069,1780930241000,-2484.57635575,0.00011298,2]
[424465071,1780930241000,-2484.57635575,0.00011298,2]
[424465070,1780930241000,-2484.57635575,0.00011298,2]
[424465064,1780930241000,-2484.57635575,0.00011298,2]
[424465054,1780930241000,-2484.57635575,0.00011298,2]
[424465100,1780930243000,-968.83853234,0.0001131,2]
[424465104,1780930243000,-1781.93851155,0.0001131,2]
[424465103,1780930243000,-5950.89253379,0.0001131,2]
[424465102,1780930243000,-10526.44080003,0.0001131,2]
[424465101,1780930243000,-10451.58174245,0.0001131,2]
[424465123,1780930252000,-1113.98434797,0.0001131,2]
[424465124,1780930420000,500.0,0.00010959,120]
[424465126,1780931117000,800.0,0.00027397,120]
[424465128,1780931118000,800.0,0.00027397,120]
[424465127,1780931118000,800.0,0.00027397,120]
[424465131,1780931124000,800.0,0.00027397,120]
[424465130,1780931124000,800.0,0.00027397,120]
[424465129,1780931124000,800.0,0.00027397,120]
[424465134,1780931125000,800.0,0.00027397,120]
[424465133,1780931125000,800.0,0.00027397,120]
[424465132,1780931125000,800.0,0.00027397,120]
[424465135,1780931126000,800.0,0.00027397,120]
[424465137,1780931126000,800.0,0.00027397,120]
[424465136,1780931126000,800.0,0.00027397,120]
[424465139,1780931127000,800.0,0.00027397,120]
[424465138,1780931127000,800.0,0.00027397,120]
[424465141,1780931128000,789.19828643,0.00027397,120]
[424465140,1780931128000,800.0,0.00027397,120]
[424465142,1780931169000,500.0,9.805e-05,2]
[424465143,1780931194000,152.98,7.847e-05,2]
[424465145,1780931297000,500.0,9.795e-05,2]
[424465144,1780931297000,347.02,9.795e-05,2]
[424465146,1780931297000,151.0,9.795e-05,2]
[424465147,1780931297000,151.0,9.795e-05,2]
[424465149,1780931297000,151.0,9.795e-05,2]
[424465150,1780931297000,182.35011887,9.795e-05,2]
[424465151,1780931297000,249.34782698,9.795e-05,2]
[424465152,1780931297000,371.41217302,9.795e-05,2]
[424465153,1780931297000,400.84170854,9.795e-05,2]
[424465148,1780931297000,151.0,9.795e-05,2]
[424465154,1780931350000,200.77,9.963e-05,7]
[424465165,1780931367000,-2765.19502596,0.00010078,2]
[424465167,1780931367000,-150.0,0.00010097,2]
[424465166,1780931367000,-887.38648831,0.00010078,2]
[424465163,1780931367000,-150.0,9.998e-05,2]
[424465168,1780931367000,-205.0,0.00010196,2]
[424465162,1780931367000,-226.12841956,9.996e-05,2]
[424465160,1780931367000,-598.15,9.922e-05,2]
[424465159,1780931367000,-250.0,9.904e-05,2]
[424465158,1780931367000,-62.24812067,9.886e-05,2]
[424465155,1780931367000,-2765.19502596,9.795e-05,2]
[424465157,1780931367000,-240.72187933,9.886e-05,2]
[424465156,1780931367000,-2524.47314663,9.795e-05,2]
[424465161,1780931367000,-200.0,9.963e-05,2]
[424465170,1780931367000,-453.60853765,0.00010316,2]
[424465164,1780931367000,-1278.66848573,0.00010078,2]
[424465171,1780931367000,-1463.12146235,0.00010316,2]
[424465184,1780931367000,-909.31018323,0.00010445,2]
[424465183,1780931367000,-999.99,0.00010445,2]
[424465182,1780931367000,-168.02,0.00010328,2]
[424465181,1780931367000,-687.87484273,0.00010325,2]
[424465179,1780931367000,-2765.19502596,0.00010325,2]
[424465178,1780931367000,-2765.19502596,0.00010325,2]
[424465180,1780931367000,-2765.19502596,0.00010325,2]
[424465177,1780931367000,-1016.53007939,0.00010325,2]
[424465175,1780931367000,-1144.62505343,0.00010325,2]
[424465174,1780931367000,-127.92643639,0.00010325,2]
[424465173,1780931367000,-1152.07356361,0.00010325,2]
[424465172,1780931367000,-150.0,0.00010324,2]
[424465176,1780931367000,-1748.66494657,0.00010325,2]
[424465169,1780931367000,-1069.2,0.00010243,2]
[424465185,1780931388000,200.0,0.000104,3]
[424465186,1780931390000,500.0,0.000105,3]
[424465187,1780931391000,-287.08232269,0.00010048,2]
[424465188,1780931392000,800.0,0.000106,3]
[424465189,1780931394000,1100.0,0.000107,3]
[424465190,1780931396000,1300.0,0.000108,3]
[424465191,1780931398000,200.0,0.000109,3]
[424465207,1780931431000,-500.0,0.00010551,2]
[424465208,1780931431000,-500.0,0.00010551,2]
[424465204,1780931431000,-500.0,0.00010551,2]
[424465205,1780931431000,-500.0,0.00010551,2]
[424465206,1780931431000,-500.0,0.00010551,2]
[424465203,1780931431000,-281.49291642,0.00010551,2]
[424465202,1780931431000,-218.50708358,0.00010551,2]
[424465197,1780931431000,-150.0,0.00010069,2]
[424465200,1780931431000,-221.64429931,0.00010551,2]
[424465199,1780931431000,-150.0,0.00010132,2]
[424465210,1780931431000,-500.0,0.00010551,2]
[424465195,1780931431000,-651.901818,0.00010048,2]
[424465196,1780931431000,-2.17585931,0.00010048,2]
[424465201,1780931431000,-278.35570069,0.00010551,2]
[424465209,1780931431000,-500.0,0.00010551,2]
[424465198,1780931431000,-250.0,0.0001009,2]
[424465212,1780931431000,-500.0,0.00010551,2]
[424465211,1780931431000,-500.0,0.00010551,2]
[424465229,1780931431000,-500.0,0.00010551,2]
[424465230,1780931431000,-500.0,0.00010551,2]
[424465221,1780931431000,-500.0,0.00010551,2]
[424465223,1780931431000,-500.0,0.00010551,2]
[424465226,1780931431000,-500.0,0.00010551,2]
[424465225,1780931431000,-500.0,0.00010551,2]
[424465228,1780931431000,-500.0,0.00010551,2]
[424465220,1780931431000,-500.0,0.00010551,2]
[424465219,1780931431000,-500.0,0.00010551,2]
[424465218,1780931431000,-565.06229658,0.00010551,2]
[424465215,1780931431000,-500.0,0.00010551,2]
[424465214,1780931431000,-500.0,0.00010551,2]
[424465216,1780931431000,-500.0,0.00010551,2]
[424465222,1780931431000,-500.0,0.00010551,2]
[424465213,1780931431000,-500.0,0.00010551,2]
[424465265,1780931432000,-500.0,0.00010551,2]
[424465262,1780931432000,-500.0,0.00010551,2]
[424465264,1780931432000,-500.0,0.00010551,2]
[424465260,1780931432000,-552.0,0.00010551,2]
[424465261,1780931432000,-500.0,0.00010551,2]
[424465259,1780931432000,-543.0,0.00010551,2]
[424465258,1780931432000,-543.0,0.00010551,2]
[424465266,1780931432000,-500.0,0.00010551,2]
[424465263,1780931432000,-500.0,0.00010551,2]
[424465267,1780931432000,-500.0,0.00010551,2]
[424465278,1780931432000,-500.0,0.00010551,2]
[424465268,1780931432000,-500.0,0.00010551,2]
[424465270,1780931432000,-500.0,0.00010551,2]
[424465271,1780931432000,-500.0,0.00010551,2]
[424465272,1780931432000,-500.0,0.00010551,2]
[424465274,1780931432000,-500.0,0.00010551,2]
[424465273,1780931432000,-500.0,0.00010551,2]
[424465256,1780931432000,-543.0,0.00010551,2]
[424465277,1780931432000,-500.0,0.00010551,2]
[424465275,1780931432000,-500.0,0.00010551,2]
[424465279,1780931432000,-500.0,0.00010551,2]
[424465269,1780931432000,-500.0,0.00010551,2]
[424465257,1780931432000,-543.0,0.00010551,2]
[424465246,1780931432000,-543.0,0.00010551,2]
[424465253,1780931432000,-543.0,0.00010551,2]
[424465276,1780931432000,-500.0,0.00010551,2]
[424465231,1780931432000,-500.0,0.00010551,2]
[424465233,1780931432000,-500.0,0.00010551,2]
[424465234,1780931432000,-500.0,0.00010551,2]
[424465232,1780931432000,-415.22640013,0.00010551,2]
[424465236,1780931432000,-543.0,0.00010551,2]
[424465235,1780931432000,-543.0,0.00010551,2]
[424465238,1780931432000,-316.62019818,0.00010551,2]
[424465240,1780931432000,-543.0,0.00010551,2]
[424465239,1780931432000,-543.0,0.00010551,2]
[424465255,1780931432000,-543.0,0.00010551,2]
[424465242,1780931432000,-543.0,0.00010551,2]
[424465241,1780931432000,-543.0,0.00010551,2]
[424465248,1780931432000,-543.0,0.00010551,2]
[424465244,1780931432000,-543.0,0.00010551,2]
[424465247,1780931432000,-543.0,0.00010551,2]
[424465245,1780931432000,-543.0,0.00010551,2]
[424465249,1780931432000,-543.0,0.00010551,2]
[424465251,1780931432000,-543.0,0.00010551,2]
[424465250,1780931432000,-543.0,0.00010551,2]
[424465254,1780931432000,-543.0,0.00010551,2]
[424465252,1780931432000,-543.0,0.00010551,2]
[424465243,1780931432000,-543.0,0.00010551,2]
[424465281,1780931432000,-500.0,0.00010551,2]
[424465320,1780931432000,-615.0,0.00010551,2]
[424465280,1780931432000,-500.0,0.00010551,2]
[424465307,1780931432000,-615.0,0.00010551,2]
[424465310,1780931432000,-485.04738776,0.00010551,2]
[424465312,1780931432000,-502.03625046,0.00010551,2]
[424465313,1780931432000,-615.0,0.00010551,2]
[424465314,1780931432000,-615.0,0.00010551,2]
[424465311,1780931432000,-615.0,0.00010551,2]
[424465315,1780931432000,-615.0,0.00010551,2]
[424465318,1780931432000,-615.0,0.00010551,2]
[424465317,1780931432000,-615.0,0.00010551,2]
[424465319,1780931432000,-615.0,0.00010551,2]
[424465330,1780931432000,-281.16637521,0.00010695,2]
[424465316,1780931432000,-615.0,0.00010551,2]
[424465321,1780931432000,-615.0,0.00010551,2]
[424465323,1780931432000,-615.0,0.00010551,2]
[424465324,1780931432000,-615.0,0.00010551,2]
[424465326,1780931432000,-876.43232755,0.00010685,2]
[424465322,1780931432000,-615.0,0.00010551,2]
[424465327,1780931432000,-96513.01601698,0.00010695,2]
[424465328,1780931432000,-16500.36476937,0.00010695,2]
[424465329,1780931432000,-3611.95466071,0.00010695,2]
[424465283,1780931432000,-645.84508962,0.00010551,2]
[424465308,1780931432000,-500.0,0.00010551,2]
[424465309,1780931432000,-14.95261224,0.00010551,2]
[424465325,1780931432000,-403.8933,0.00010674,2]
[424465306,1780931432000,-500.0,0.00010551,2]
[424465305,1780931432000,-615.0,0.00010551,2]
[424465284,1780931432000,-500.0,0.00010551,2]
[424465285,1780931432000,-500.0,0.00010551,2]
[424465287,1780931432000,-500.0,0.00010551,2]
[424465290,1780931432000,-150.0,0.00010551,2]
[424465288,1780931432000,-500.0,0.00010551,2]
[424465286,1780931432000,-500.0,0.00010551,2]
[424465291,1780931432000,-151.47284327,0.00010551,2]
[424465289,1780931432000,-202.32764356,0.00010551,2]
[424465292,1780931432000,-500.0,0.00010551,2]
[424465294,1780931432000,-500.0,0.00010551,2]
[424465282,1780931432000,-500.0,0.00010551,2]
[424465295,1780931432000,-500.0,0.00010551,2]
[424465293,1780931432000,-500.0,0.00010551,2]
[424465298,1780931432000,-500.0,0.00010551,2]
[424465297,1780931432000,-500.0,0.00010551,2]
[424465296,1780931432000,-500.0,0.00010551,2]
[424465299,1780931432000,-500.0,0.00010551,2]
[424465301,1780931432000,-500.0,0.00010551,2]
[424465302,1780931432000,-615.0,0.00010551,2]
[424465303,1780931432000,-615.0,0.00010551,2]
[424465300,1780931432000,-500.0,0.00010551,2]
[424465304,1780931432000,-500.0,0.00010551,2]
[424465340,1780931437000,-615.0,0.00010551,2]
[424465341,1780931437000,-615.0,0.00010551,2]
[424465339,1780931437000,-7703.2,0.0001011,2]
[424465344,1780931437000,-450.0,0.00010694,2]
[424465342,1780931437000,-615.0,0.00010551,2]
[424465343,1780931437000,-615.0,0.00010551,2]
[424465393,1780931438000,-1852.9235751,0.00010694,2]
[424465389,1780931438000,-1852.9235751,0.00010694,2]
[424465388,1780931438000,-1852.9235751,0.00010694,2]
[424465387,1780931438000,-1852.9235751,0.00010694,2]
[424465386,1780931438000,-1852.9235751,0.00010694,2]
[424465376,1780931438000,-1852.9235751,0.00010694,2]
[424465383,1780931438000,-1852.9235751,0.00010694,2]
[424465385,1780931438000,-1852.9235751,0.00010694,2]
[424465382,1780931438000,-1852.9235751,0.00010694,2]
[424465381,1780931438000,-1852.9235751,0.00010694,2]
[424465378,1780931438000,-1852.9235751,0.00010694,2]
[424465390,1780931438000,-1852.9235751,0.00010694,2]
[424465384,1780931438000,-1852.9235751,0.00010694,2]
[424465392,1780931438000,-1852.9235751,0.00010694,2]
[424465406,1780931438000,-1852.9235751,0.00010694,2]
[424465394,1780931438000,-1852.9235751,0.00010694,2]
[424465397,1780931438000,-1852.9235751,0.00010694,2]
[424465396,1780931438000,-1852.9235751,0.00010694,2]